[Event "44th Chess Olympiad Women 2022"]
[Site "Chennai"]
[Date "2022.08.05"]
[Round "7.18"]
[White "O`Gorman, Alice"]
[Black "Zimina, Olga"]
[Result "1-0"]
[WhiteElo "2043"]
[BlackElo "2340"]
[Annotator "ChessBase"]
[PlyCount "77"]
[EventDate "2022.??.??"]
[TimeControl "60"]

1. c4 {[%emt 0:00:03]} c6 {[%emt 0:00:10]} 2. Nf3 {[%emt 0:00:05]} d5 {[%emt 0:
00:00]} 3. e3 {[%emt 0:00:08]} Nf6 {[%emt 0:00:11]} 4. Nc3 {[%emt 0:00:08]} a6
{[%emt 0:00:07]} 5. Qc2 {[%emt 0:00:06]} e6 {[%emt 0:01:16]} 6. b3 {[%emt 0:00:
00]} Bd6 {[%emt 0:00:34]} 7. Bb2 {[%emt 0:01:30]} e5 {[%emt 0:00:43]} 8. d4 {
[%emt 0:01:04]} e4 {[%emt 0:01:21]} 9. Ne5 {[%emt 0:03:22]} Nbd7 {[%emt 0:00:
00]} 10. Nxd7 {[%emt 0:02:02]} Bxd7 {[%emt 0:02:26]} 11. Be2 {[%emt 0:00:38]}
O-O {[%emt 0:01:22]} 12. Rg1 {[%emt 0:03:46]} dxc4 {[%emt 0:18:51]} 13. Bxc4 {
[%emt 0:03:17]} b5 {[%emt 0:04:31]} 14. Be2 {[%emt 0:01:09]} Qe7 {[%emt 0:00:
00]} 15. g4 {[%emt 0:08:40]} Rfe8 {[%emt 0:02:30]} 16. O-O-O {[%emt 0:04:30]}
a5 {[%emt 0:02:30]} 17. g5 {[%emt 0:07:08]} Nd5 {[%emt 0:00:07]} 18. Kb1 {
[%emt 0:06:43]} a4 {[%emt 0:08:46]} 19. Bg4 {[%emt 0:06:02]} Nb4 {[%emt 0:00:
00]} 20. Qd2 {[%emt 0:03:45]} axb3 {[%emt 0:00:50]} 21. axb3 {[%emt 0:05:06]}
Ra6 {[%emt 0:07:05]} 22. d5 {[%emt 0:07:19]} c5 {[%emt 0:01:20]} 23. Qe2 {
[%emt 0:04:43]} Nd3 {[%emt 0:12:05]} 24. Bxd7 {[%emt 0:08:42]} Nxb2 {[%emt 0:
00:00]} 25. Bxe8 {[%emt 0:00:58]} Nxd1 {[%emt 0:00:07]} 26. Rxd1 {[%emt 0:00:
00]} Qxe8 {[%emt 0:00:10]} 27. Qxb5 {[%emt 0:02:02]} Qa8 {[%emt 0:00:05]} 28.
Na4 {[%emt 0:00:48]} Ra5 {[%emt 0:00:53]} 29. Qc6 {[%emt 0:03:20]} Qd8 {
[%emt 0:00:24]} 30. Qb6 {[%emt 0:01:39]} Bc7 {[%emt 0:00:47]} 31. Qc6 {[%emt 0:
00:00]} Qb8 {[%emt 0:01:10]} 32. d6 {[%emt 0:03:49]} Rxa4 {[%emt 0:02:45]} 33.
Qxa4 {[%emt 0:01:13]} Bxd6 {[%emt 0:00:04]} 34. Kc2 {[%emt 0:00:57]} Bf8 {
[%emt 0:02:17]} 35. Qxe4 {[%emt 0:00:57]} Qxh2 {[%emt 0:02:11]} 36. Qf4 {
[%emt 0:01:51]} Qh3 {[%emt 0:00:05]} 37. Rd8 {[%emt 0:01:31]} Qe6 {[%emt 0:00:
00]} 38. Qb8 {[%emt 0:01:22]} Qe7 {[%emt 0:00:13]} 39. Re8 {[%emt 0:00:18]} 1-0

[Event "44th Chess Olympiad Women 2022"]
[Site "Chennai"]
[Date "2022.08.05"]
[Round "7.19"]
[White "Azhar, Puteri Munajjah Az-"]
[Black "Chumpitaz, Ann"]
[Result "1-0"]
[WhiteElo "2018"]
[BlackElo "2278"]
[Annotator "ChessBase"]
[PlyCount "137"]
[EventDate "2022.??.??"]
[TimeControl "60"]

1. d4 {[%emt 0:00:09]} Nf6 {[%emt 0:00:10]} 2. c4 {[%emt 0:00:13]} c5 {[%emt 0:
00:00]} 3. d5 {[%emt 0:00:32]} b5 {[%emt 0:01:04]} 4. cxb5 {[%emt 0:01:19]} e6
{[%emt 0:00:07]} 5. dxe6 {[%emt 0:12:32]} fxe6 {[%emt 0:00:20]} 6. Nf3 {
[%emt 0:01:05]} a6 {[%emt 0:03:45]} 7. bxa6 {[%emt 0:07:34]} d5 {[%emt 0:01:03]
} 8. e3 {[%emt 0:03:28]} Bd6 {[%emt 0:04:32]} 9. Nc3 {[%emt 0:12:28]} O-O {
[%emt 0:03:56]} 10. Bd3 {[%emt 0:08:59]} Nc6 {[%emt 0:22:15]} 11. O-O {[%emt 0:
00:00]} Nb4 {[%emt 0:04:01]} 12. Bb1 {[%emt 0:18:58]} e5 {[%emt 0:12:47]} 13.
e4 {[%emt 0:09:01]} d4 {[%emt 0:00:13]} 14. Nd5 {[%emt 0:00:50]} Bxa6 {[%emt 0:
00:00]} 15. Re1 {[%emt 0:00:19]} Qb8 {[%emt 0:02:46]} 16. Nxf6+ {[%emt 0:02:40]
} Rxf6 {[%emt 0:00:08]} 17. Nh4 {[%emt 0:01:25]} Qf8 {[%emt 0:04:05]} 18. Nf5 {
[%emt 0:00:37]} Bc8 {[%emt 0:02:26]} 19. h4 {[%emt 0:01:35]} g6 {[%emt 0:05:17]
} 20. Bh6 {[%emt 0:01:39]} Qf7 {[%emt 0:01:02]} 21. Nxd6 {[%emt 0:02:14]} Rxd6
{[%emt 0:00:05]} 22. a3 {[%emt 0:00:26]} Be6 {[%emt 0:00:15]} 23. Bd3 {[%emt 0:
00:00]} Nc6 {[%emt 0:01:14]} 24. Bb5 {[%emt 0:00:37]} Ne7 {[%emt 0:01:53]} 25.
Rc1 {[%emt 0:00:23]} c4 {[%emt 0:00:25]} 26. Qd2 {[%emt 0:00:25]} Rc8 {[%emt 0:
00:00]} 27. Bg5 {[%emt 0:00:28]} Rdd8 {[%emt 0:00:37]} 28. Qb4 {[%emt 0:00:26]}
Rc7 {[%emt 0:00:31]} 29. a4 {[%emt 0:00:37]} d3 {[%emt 0:00:21]} 30. f3 {
[%emt 0:01:08]} Rdc8 {[%emt 0:00:35]} 31. Qd6 {[%emt 0:00:25]} Nc6 {[%emt 0:00:
00]} 32. Bxc6 {[%emt 0:00:26]} Rxc6 {[%emt 0:00:02]} 33. Qxe5 {[%emt 0:00:09]}
Rc5 {[%emt 0:00:29]} 34. Qd4 {[%emt 0:00:09]} R5c7 {[%emt 0:00:46]} 35. Red1 {
[%emt 0:00:30]} Qe8 {[%emt 0:00:36]} 36. Bh6 {[%emt 0:01:45]} Rb7 {[%emt 0:00:
00]} 37. a5 {[%emt 0:00:33]} Qb5 {[%emt 0:00:24]} 38. Rd2 {[%emt 0:00:35]} Qxa5
{[%emt 0:00:05]} 39. Qf6 {[%emt 0:00:17]} Qb6+ {[%emt 0:00:20]} 40. Kh1 {
[%emt 0:00:08]} Rf7 {[%emt 0:00:46]} 41. Qe5 {[%emt 0:30:11]} Rc5 {[%emt 0:00:
00]} 42. Ra1 {[%emt 0:00:00]} Rc8 {[%emt 0:00:59]} 43. Ra5 {[%emt 0:00:00]} Re8
{[%emt 0:02:54]} 44. Rb5 {[%emt 0:00:00]} Qa7 {[%emt 0:01:15]} 45. Ra5 {
[%emt 0:00:00]} Qb8 {[%emt 0:00:20]} 46. Qg5 {[%emt 0:00:00]} Qd8 {[%emt 0:00:
00]} 47. Qxd8 {[%emt 0:00:17]} Rxd8 {[%emt 0:00:03]} 48. Rb5 {[%emt 0:00:36]}
Ra7 {[%emt 0:01:10]} 49. Kg1 {[%emt 0:00:24]} Ra1+ {[%emt 0:00:51]} 50. Kf2 {
[%emt 0:00:10]} Rb1 {[%emt 0:00:12]} 51. Bg5 {[%emt 0:02:03]} Ra8 {[%emt 0:00:
00]} 52. Bf6 {[%emt 0:00:24]} Raa1 {[%emt 0:01:56]} 53. Bc3 {[%emt 0:01:34]}
Ra7 {[%emt 0:01:29]} 54. Rb8+ {[%emt 0:00:12]} Kf7 {[%emt 0:00:17]} 55. Rh8 {
[%emt 0:00:13]} Raa1 {[%emt 0:00:30]} 56. Rxh7+ {[%emt 0:00:10]} Ke8 {[%emt 0:
00:00]} 57. h5 {[%emt 0:00:43]} Rf1+ {[%emt 0:00:19]} 58. Ke3 {[%emt 0:00:30]}
Rae1+ {[%emt 0:00:06]} 59. Kd4 {[%emt 0:00:27]} gxh5 {[%emt 0:00:05]} 60. Rxh5
{[%emt 0:00:29]} Re2 {[%emt 0:00:09]} 61. Ke5 {[%emt 0:01:39]} Bg8 {[%emt 0:00:
00]} 62. Kf6 {[%emt 0:01:19]} Rxd2 {[%emt 0:01:36]} 63. Bxd2 {[%emt 0:00:09]}
Rf2 {[%emt 0:00:02]} 64. Bc3 {[%emt 0:00:55]} d2 {[%emt 0:03:04]} 65. Rh1 {
[%emt 0:00:26]} Rxg2 {[%emt 0:00:10]} 66. f4 {[%emt 0:00:40]} Bh7 {[%emt 0:00:
00]} 67. Ke5 {[%emt 0:00:39]} Bg6 {[%emt 0:09:33]} 68. Rd1 {[%emt 0:00:16]} Re2
{[%emt 0:00:33]} 69. f5 {[%emt 0:00:06]} 1-0

[Event "44th Chess Olympiad Women 2022"]
[Site "Chennai"]
[Date "2022.08.05"]
[Round "7.19"]
[White "Caballero Quijano, Mitzy Mishell"]
[Black "Azhar, Puteri Rifqah Fahad"]
[Result "1-0"]
[WhiteElo "2035"]
[BlackElo "1940"]
[Annotator "NA RC"]
[PlyCount "75"]
[EventDate "2022.??.??"]
[TimeControl "60"]

1. d4 {[%emt 0:00:03]} Nf6 {[%emt 0:00:22]} 2. Nf3 {[%emt 0:00:08]} g6 {
[%emt 0:00:53]} 3. c4 {[%emt 0:00:06]} Bg7 {[%emt 0:00:17]} 4. g3 {[%emt 0:00:
00]} d6 {[%emt 0:00:35]} 5. Bg2 {[%emt 0:00:07]} O-O {[%emt 0:00:58]} 6. Nc3 {
[%emt 0:00:13]} Nc6 {[%emt 0:01:05]} 7. O-O {[%emt 0:00:07]} a6 {[%emt 0:02:10]
} 8. h3 {[%emt 0:00:09]} Rb8 {[%emt 0:01:16]} 9. e4 {[%emt 0:00:14]} b5 {
[%emt 0:05:19]} 10. cxb5 {[%emt 0:00:06]} axb5 {[%emt 0:00:05]} 11. Re1 {
[%emt 0:00:09]} Nd7 {[%emt 0:07:12]} 12. Bg5 {[%emt 0:00:12]} h6 {[%emt 0:00:
00]} 13. Be3 {[%emt 0:00:16]} e5 {[%emt 0:04:53]} 14. d5 {[%emt 0:03:43]} Na5 {
[%emt 0:02:02]} 15. b3 {[%emt 0:02:05]} f5 {[%emt 0:03:58]} 16. exf5 {[%emt 0:
00:00]} gxf5 {[%emt 0:01:16]} 17. Nh4 {[%emt 0:00:23]} Qf6 {[%emt 0:01:29]} 18.
Rc1 {[%emt 0:09:49]} b4 {[%emt 0:12:01]} 19. Na4 {[%emt 0:00:42]} f4 {[%emt 0:
00:00]} 20. Bd2 {[%emt 0:00:23]} Nc5 {[%emt 0:06:41]} 21. Nxc5 {[%emt 0:00:43]}
dxc5 {[%emt 0:00:06]} 22. Kh2 {[%emt 0:00:39]} Nb7 {[%emt 0:05:40]} 23. Qh5 {
[%emt 0:04:54]} Bd7 {[%emt 0:04:15]} 24. Rc2 {[%emt 0:04:34]} Be8 {[%emt 0:00:
00]} 25. Qe2 {[%emt 0:00:32]} Rd8 {[%emt 0:01:13]} 26. Bc1 {[%emt 0:02:01]} c6
{[%emt 0:10:22]} 27. Qa6 {[%emt 0:02:10]} Rf7 {[%emt 0:09:11]} 28. dxc6 {
[%emt 0:01:47]} Rc7 {[%emt 0:02:26]} 29. Bb2 {[%emt 0:01:24]} Re7 {[%emt 0:00:
00]} 30. Qc4+ {[%emt 0:02:30]} Bf7 {[%emt 0:00:13]} 31. Qe2 {[%emt 0:00:19]}
Nd6 {[%emt 0:02:23]} 32. Rxc5 {[%emt 0:00:15]} Rde8 {[%emt 0:00:55]} 33. c7 {
[%emt 0:02:45]} fxg3+ {[%emt 0:00:58]} 34. fxg3 {[%emt 0:00:08]} Nc8 {[%emt 0:
00:00]} 35. Rf1 {[%emt 0:01:17]} Qb6 {[%emt 0:00:31]} 36. Rc6 {[%emt 0:00:09]}
Qa5 {[%emt 0:00:13]} 37. Nf5 {[%emt 0:01:16]} Rxc7 {[%emt 0:00:46]} 38. Qg4 {
[%emt 0:02:36]} 1-0

[Event "44th Chess Olympiad Women 2022"]
[Site "Chennai"]
[Date "2022.08.05"]
[Round "7.19"]
[White "Cori T., Deysi"]
[Black "Foudzi, Siti Zulaikha"]
[Result "1-0"]
[WhiteElo "2371"]
[BlackElo "2188"]
[Annotator "TA"]
[PlyCount "117"]
[EventDate "2022.??.??"]
[TimeControl "60"]

{[%evp 9,117,16,26,-18,51,-25,-29,-137,-76,-73,-21,-38,-39,-73,-43,-31,0,0,0,0,
0,0,0,0,7,7,11,-26,0,0,0,0,29,3,0,0,23,0,0,0,113,102,102,104,117,110,130,96,
165,159,168,201,200,205,205,160,160,0,216,198,201,202,216,118,107,102,230,229,
217,187,376,371,381,312,525,512,699,631,2339,2594,2530,2427,1827,1684,11101,
9687,6701,5499,2673,1347,29980,29980,29982,29983,29983,29983,29985,29986,29986,
29987,29988,29987,29987,29988,29990,29984,29984,29985,29983,29981]} 1. Nf3 {
[%emt 0:00:16]} f5 {[%emt 0:00:37]} 2. d3 {[%emt 0:03:26]} Nf6 {[%emt 0:01:02]}
3. Bg5 {[%emt 0:00:08]} e6 {[%emt 0:02:14]} 4. e4 {[%emt 0:02:58]} Be7 {
[%emt 0:02:47]} 5. Nc3 {[%emt 0:06:03]} d5 {[%emt 0:05:57] [#]} 6. Qd2 $146 {
[%emt 0:14:49] A04: Unusual lines after 1 Nf3 and King's Indian Attack.} ({
Predecessor:} 6. e5 Nfd7 7. Bxe7 Qxe7 8. Qd2 O-O 9. O-O-O a6 10. Ne2 c5 11. c3
Nc6 12. d4 {1-0 (26) Cichonski,B (2018)-Kus,A (1900) Krakow 2016}) 6... O-O {
[%emt 0:05:20]} (6... d4 $11 7. Ne2 c5) 7. O-O-O {[%emt 0:04:27]} (7. e5 $14
Nfd7 8. d4) 7... d4 $11 {[%emt 0:05:07]} 8. Nb5 {[%emt 0:03:14]} (8. Ne2 $1 $11
{remains equal.}) 8... c5 {[%emt 0:01:13]} (8... e5 $142 $1 9. Nxe5 c6) 9. e5
$17 {[%emt 0:07:01]} Nd5 {[%emt 0:04:45]} ({Black should try} 9... Ne8 $17) 10.
Bxe7 {[%emt 0:16:00]} Qxe7 {[%emt 0:00:14]} 11. g3 {[%emt 0:00:26]} Bd7 {
[%emt 0:03:57]} 12. Nd6 {[%emt 0:00:28]} Nc6 {[%emt 0:02:29][%cal Yc6e5]} 13.
Qg5 {[%emt 0:03:34]} Qxg5+ {[%emt 0:03:15]} 14. Nxg5 {[%emt 0:04:54]} h6 {
[%emt 0:00:14]} ({Much less strong is} 14... Nxe5 15. Re1 Ng4 16. h3 $16) 15.
Nf3 {[%emt 0:01:17][%cal Yg5f3,Yf3h4,Yh4g6,Yg6f4]} Rab8 {[%emt 0:00:00]} 16.
Bg2 {[%emt 0:00:45]} b5 {[%emt 0:02:52]} 17. Rhe1 {[%emt 0:03:52]} Rb6 {
[%emt 0:00:56]} 18. Nh4 {[%emt 0:08:41]} Nce7 {[%emt 0:07:03] Prevents Ng6.} (
18... Nde7 $142) 19. Bxd5 $11 {[%emt 0:05:40]} Nxd5 {[%emt 0:00:06]} 20. Ng6 {
[%emt 0:01:16] Pair of Knights!} Rfb8 {[%emt 0:00:08]} 21. Rg1 {[%emt 0:04:21]}
Kh7 {[%emt 0:02:33]} 22. Nf4 {[%emt 0:00:17]} Nb4 {[%emt 0:01:27]} (22... Nf6
$5 {[%cal Rf6g4]}) 23. g4 {[%emt 0:02:48]} Nc6 {[%emt 0:11:57]} 24. Rde1 {
[%emt 0:02:29] Black must now prevent gxf5.} Nxe5 {[%emt 0:02:47]} 25. Rxe5 $16
{[%emt 0:00:05]} Rxd6 {[%emt 0:00:04] [#]} 26. gxf5 {[%emt 0:00:44]} ({Much
worse is} 26. Rxc5 $6 fxg4 27. Nh5 Rf8 $11) 26... exf5 {[%emt 0:04:39]} 27. Re7
{[%emt 0:02:57]} Rg8 {[%emt 0:00:15]} 28. h4 {[%emt 0:00:05] White is more
active.} Be8 {[%emt 0:02:12]} (28... c4 $16) 29. Ne6 $36 {[%emt 0:00:12][%cal
Re6g7] White is really pushing.} Rd7 {[%emt 0:01:57] [#]} 30. Nf8+ $1 {[%emt 0:
01:38] Deflection} Rxf8 {[%emt 0:00:02]} 31. Rgxg7+ {[%emt 0:00:05]} Kh8 {
[%emt 0:00:03]} 32. Rh7+ {[%emt 0:00:15]} Kg8 {[%emt 0:00:00] And now ...Rxe7
would win.} 33. Rhg7+ {[%emt 0:00:19]} (33. Rxd7 $16 Bxd7 34. Rxd7) 33... Kh8 {
[%emt 0:00:02]} 34. Rxd7 {[%emt 0:01:22]} Bxd7 {[%emt 0:00:00]} 35. Rxd7 {
[%emt 0:00:01] Endgame KR-KR} f4 {[%emt 0:05:12]} 36. b4 {[%emt 0:01:05]} (36.
Rxa7 $18 {Rb7 is the strong threat.} f3 37. Ra5) 36... cxb4 $16 {[%emt 0:00:55]
} 37. Rxd4 {[%emt 0:00:03]} Kg7 {[%emt 0:01:21] Loses the game.} (37... a5 $16
{keeps fighting.}) 38. Rxb4 $18 {[%emt 0:00:19]} Rf5 {[%emt 0:00:28]} 39. a4 {
[%emt 0:00:24]} bxa4 {[%emt 0:01:41]} (39... a6 {might work better.} 40. Kd2
Kf7 41. axb5 axb5) 40. Rxa4 {[%emt 0:00:37]} a5 {[%emt 0:00:06]} 41. Kd2 {
[%emt 0:31:07]} Kg6 $2 {[%emt 0:30:13]} (41... Kf7 42. c4 Rh5) 42. c4 {[%emt 0:
00:00][%cal Yc2c4,Yc4c5,Yc5c6]} Kh5 {[%emt 0:00:00]} 43. d4 {[%emt 0:00:00]
Threatens to win with c5.} Kxh4 {[%emt 0:00:00]} 44. c5 {[%emt 0:00:00]
Strongly threatening c6.} Rd5 {[%emt 0:00:00]} 45. c6 {[%emt 0:00:00] White
threatens c7 and mate.} Rd8 {[%emt 0:00:00]} 46. Kd3 {[%emt 0:00:00]} Kg4 {
[%emt 0:00:00]} 47. Rxa5 {[%emt 0:00:00] Threatening mate with c7.} h5 {
[%emt 0:00:00]} 48. f3+ {[%emt 0:00:00]} Kxf3 {[%emt 0:00:00]} 49. Rxh5 {
[%emt 0:00:00] Intending c7 and mate.} Kg2 {[%emt 0:00:00]} 50. Rg5+ {[%emt 0:
00:00] White mates.} Kf2 {[%emt 0:00:00]} 51. c7 {[%emt 0:00:09]} Rc8 {[%emt 0:
00:00]} 52. Rg7 {[%emt 0:00:08]} f3 {[%emt 0:00:00]} 53. d5 {[%emt 0:00:00]
[%cal Yd4d5,Yd5d6]} Ke1 {[%emt 0:00:00]} 54. Re7+ {[%emt 0:00:00]} Kd1 {
[%emt 0:00:00]} 55. Rf7 {[%emt 0:00:09]} Ke1 {[%emt 0:00:00]} 56. d6 {[%emt 0:
00:28]} f2 {[%emt 0:00:00]} 57. Kd4 {[%emt 0:00:23]} f1=Q {[%emt 0:00:00]} 58.
Rxf1+ {[%emt 0:00:04]} Kxf1 {[%emt 0:00:00]} 59. Kd5 {[%emt 0:00:04] Weighted
Error Value: White=0.21 (precise) /Black=0.40} 1-0

[Event "44th Chess Olympiad Women 2022"]
[Site "Chennai"]
[Date "2022.08.05"]
[Round "7.19"]
[White "Sim, Jia Ru"]
[Black "Paredes Bustamante, Paula Elizab"]
[Result "0-1"]
[WhiteElo "2005"]
[BlackElo "2162"]
[Annotator "NA RC"]
[PlyCount "92"]
[EventDate "2022.??.??"]
[TimeControl "60"]

1. e4 {[%emt 0:00:05]} e5 {[%emt 0:00:01]} 2. Nf3 {[%emt 0:00:10]} Nc6 {
[%emt 0:00:04]} 3. Bb5 {[%emt 0:00:10]} a6 {[%emt 0:00:04]} 4. Ba4 {[%emt 0:00:
00]} Nf6 {[%emt 0:00:06]} 5. O-O {[%emt 0:00:12]} b5 {[%emt 0:01:49]} 6. Bb3 {
[%emt 0:00:14]} Be7 {[%emt 0:06:50]} 7. Re1 {[%emt 0:00:39]} d6 {[%emt 0:00:11]
} 8. c3 {[%emt 0:00:18]} O-O {[%emt 0:00:04]} 9. h3 {[%emt 0:00:10]} Na5 {
[%emt 0:01:35]} 10. Bc2 {[%emt 0:00:13]} c5 {[%emt 0:00:06]} 11. d4 {[%emt 0:
00:00]} Nc6 {[%emt 0:01:12]} 12. d5 {[%emt 0:02:10]} Nb8 {[%emt 0:01:29]} 13.
Nbd2 {[%emt 0:01:38]} a5 {[%emt 0:06:16]} 14. Nf1 {[%emt 0:04:26]} Nbd7 {
[%emt 0:04:25]} 15. N3h2 {[%emt 0:04:16]} c4 {[%emt 0:03:28]} 16. f4 {[%emt 0:
00:00]} exf4 {[%emt 0:01:23]} 17. Bxf4 {[%emt 0:00:11]} Ne5 {[%emt 0:01:12]}
18. Nf3 {[%emt 0:10:54]} Nfd7 {[%emt 0:21:13]} 19. Ne3 {[%emt 0:00:02]} Bf6 {
[%emt 0:09:53]} 20. Nd4 {[%emt 0:07:08]} Qb6 {[%emt 0:01:44]} 21. Nef5 {
[%emt 0:08:29]} Nc5 {[%emt 0:02:44]} 22. Be3 {[%emt 0:09:52]} b4 {[%emt 0:00:
00]} 23. g4 {[%emt 0:02:36]} g6 {[%emt 0:00:28]} 24. Nh6+ {[%emt 0:04:20]} Kh8
{[%emt 0:00:14]} 25. Nf3 {[%emt 0:04:15]} Qc7 {[%emt 0:13:55]} 26. Rf1 {
[%emt 0:08:54]} bxc3 {[%emt 0:07:44]} 27. bxc3 {[%emt 0:00:24]} Qe7 {[%emt 0:
00:00]} 28. Nxe5 {[%emt 0:09:54]} Bxe5 {[%emt 0:00:07]} 29. Qf3 {[%emt 0:00:45]
} Ra7 {[%emt 0:01:36]} 30. Rab1 {[%emt 0:00:36]} Rc7 {[%emt 0:01:09]} 31. Rb8 {
[%emt 0:01:28]} Bg7 {[%emt 0:00:16]} 32. Bd4 {[%emt 0:03:30]} Nd7 {[%emt 0:00:
00]} 33. Ra8 {[%emt 0:03:50]} Ne5 {[%emt 0:00:04]} 34. Qe3 {[%emt 0:02:08]} Qh4
{[%emt 0:02:04]} 35. Bxe5 {[%emt 0:01:31]} Bxe5 {[%emt 0:01:03]} 36. Nxf7+ {
[%emt 0:05:13]} Rcxf7 {[%emt 0:00:11]} 37. Rxf7 {[%emt 0:00:08]} Rxf7 {[%emt 0:
00:00]} 38. Rxc8+ {[%emt 0:00:07]} Kg7 {[%emt 0:00:02]} 39. Rxc4 {[%emt 0:00:
00]} Bf4 {[%emt 0:00:47]} 40. Qd4+ {[%emt 0:01:26]} Kh6 {[%emt 0:00:03]} 41.
Qd3 {[%emt 0:31:21]} Bh2+ {[%emt 0:32:13]} 42. Kxh2 {[%emt 0:00:00]} Qf2+ {
[%emt 0:00:00]} 43. Kh1 {[%emt 0:00:00]} Qe1+ {[%emt 0:00:00]} 44. Kg2 {
[%emt 0:00:00]} Rf2+ {[%emt 0:00:00]} 45. Kg3 {[%emt 0:00:00]} Rf1+ {[%emt 0:
00:00]} 46. Kg2 {[%emt 0:00:00]} Qf2# {[%emt 0:00:00]} 0-1

[Event "44th Chess Olympiad Women 2022"]
[Site "Chennai"]
[Date "2022.08.05"]
[Round "7.20"]
[White "Avila Fraire, Ameyalli"]
[Black "Citra, Dewi Ardhiani Anast"]
[Result "0-1"]
[WhiteElo "1907"]
[BlackElo "2257"]
[Annotator "ChessBase"]
[PlyCount "72"]
[EventDate "2022.??.??"]
[TimeControl "60"]

1. e4 {[%emt 0:00:06]} c5 {[%emt 0:00:06]} 2. Nf3 {[%emt 0:00:07]} a6 {[%emt 0:
00:00]} 3. c3 {[%emt 0:00:58]} d5 {[%emt 0:00:06]} 4. exd5 {[%emt 0:00:07]}
Qxd5 {[%emt 0:00:06]} 5. d4 {[%emt 0:00:05]} Nc6 {[%emt 0:00:51]} 6. Be3 {
[%emt 0:00:35]} cxd4 {[%emt 0:02:19]} 7. cxd4 {[%emt 0:02:40]} e6 {[%emt 0:00:
00]} 8. Nc3 {[%emt 0:00:45]} Qd6 {[%emt 0:00:52]} 9. a3 {[%emt 0:05:25]} Nf6 {
[%emt 0:00:29]} 10. Bd3 {[%emt 0:00:45]} Be7 {[%emt 0:02:58]} 11. O-O {[%emt 0:
00:00]} O-O {[%emt 0:05:43]} 12. Bc2 {[%emt 0:04:28]} Rd8 {[%emt 0:03:27]} 13.
Qd3 {[%emt 0:01:31]} g6 {[%emt 0:00:31]} 14. Rad1 {[%emt 0:02:14]} b5 {[%emt 0:
00:00]} 15. b4 {[%emt 0:27:08]} Bb7 {[%emt 0:01:59]} 16. Bb3 {[%emt 0:01:15]}
Rac8 {[%emt 0:01:54]} 17. d5 {[%emt 0:17:10]} exd5 {[%emt 0:06:26]} 18. Nxd5 {
[%emt 0:00:36]} Nxd5 {[%emt 0:01:32]} 19. Qxd5 {[%emt 0:09:18]} Qf6 {[%emt 0:
00:00]} 20. Qe4 {[%emt 0:01:05]} Rxd1 {[%emt 0:03:51]} 21. Rxd1 {[%emt 0:00:10]
} Na5 {[%emt 0:00:26]} 22. Bd4 {[%emt 0:16:53]} Qxf3 {[%emt 0:03:53]} 23. gxf3
{[%emt 0:00:06]} Bxe4 {[%emt 0:00:05]} 24. bxa5 {[%emt 0:00:12]} Bxf3 {[%emt 0:
00:00]} 25. Ra1 {[%emt 0:05:23]} Bxa3 {[%emt 0:00:52]} 26. Bd1 {[%emt 0:00:56]}
Bxd1 {[%emt 0:03:20]} 27. Rxa3 {[%emt 0:00:09]} b4 {[%emt 0:00:24]} 28. Rd3 {
[%emt 0:00:22]} Bc2 {[%emt 0:05:39]} 29. Re3 {[%emt 0:01:39]} f5 {[%emt 0:00:
00]} 30. Re7 {[%emt 0:01:58]} Be4 {[%emt 0:03:25]} 31. h3 {[%emt 0:00:49]} Kf8
{[%emt 0:02:53]} 32. Rxh7 {[%emt 0:00:15]} Rc1+ {[%emt 0:00:08]} 33. Kh2 {
[%emt 0:00:09]} f4 {[%emt 0:00:16]} 34. Rh8+ {[%emt 0:01:04]} Kf7 {[%emt 0:00:
00]} 35. Rh7+ {[%emt 0:00:31]} Ke6 {[%emt 0:00:10]} 36. f3 {[%emt 0:00:30]}
Bxf3 {[%emt 0:00:06]} 0-1

[Event "44th Chess Olympiad Women 2022"]
[Site "Chennai"]
[Date "2022.08.05"]
[Round "7.20"]
[White "Guerrero Rodriguez, Alejandra"]
[Black "Aulia, Medina Warda"]
[Result "0-1"]
[WhiteElo "2006"]
[BlackElo "2374"]
[Annotator "RC"]
[PlyCount "42"]
[EventDate "2022.??.??"]
[TimeControl "60"]

1. e4 {[%emt 0:00:12]} c5 {[%emt 0:00:06]} 2. Nf3 {[%emt 0:00:30]} a6 {[%emt 0:
00:00]} 3. d4 {[%emt 0:01:26]} cxd4 {[%emt 0:00:12]} 4. Qxd4 {[%emt 0:00:41]}
Nc6 {[%emt 0:03:04]} 5. Qe3 {[%emt 0:01:44]} Nf6 {[%emt 0:04:03]} 6. c4 {
[%emt 0:03:08]} e5 {[%emt 0:06:40]} 7. h3 {[%emt 0:04:44]} Bb4+ {[%emt 0:01:24]
} 8. Nbd2 {[%emt 0:01:58]} d6 {[%emt 0:06:27]} 9. Be2 {[%emt 0:13:14]} O-O {
[%emt 0:03:14]} 10. O-O {[%emt 0:02:53]} Bc5 {[%emt 0:02:55]} 11. Qg5 {[%emt 0:
00:00]} h6 {[%emt 0:10:35]} 12. Qh4 {[%emt 0:01:19]} Ne7 {[%emt 0:01:17]} 13.
g4 {[%emt 0:06:20]} Ng6 {[%emt 0:01:23]} 14. Qg3 {[%emt 0:00:07]} Nf4 {[%emt 0:
00:00]} 15. Bd1 {[%emt 0:01:27]} b5 {[%emt 0:03:02]} 16. cxb5 {[%emt 0:10:01]}
axb5 {[%emt 0:02:09]} 17. a3 {[%emt 0:04:02]} Bb7 {[%emt 0:02:00]} 18. Re1 {
[%emt 0:00:51]} Nd3 {[%emt 0:05:47]} 19. Re2 {[%emt 0:03:10]} Rc8 {[%emt 0:00:
00]} 20. Kh2 {[%emt 0:15:04]} Bb6 {[%emt 0:01:28]} 21. Nb3 {[%emt 0:02:50]}
Nxe4 {[%emt 0:00:40]} 0-1